bitfinex/quotes_ETHUSD_20220213
["timestamp","ask_amount","ask_price","bid_price","bid_amount"]
[1644786620833,0.1723,2901.5,2901.1,0.3]
[1644786621031,0.1723,2902.1,2901.1,0.3]
[1644786621230,0.1723,2902.1,2901.1,3.43853919]
[1644786621432,0.1723,2902.1,2900.9,3.65105459]
[1644786621634,0.4723,2902.1,2901.0,2.00883246]
[1644786621831,0.86199,2902.0,2901.0,2.00883246]
[1644786622034,0.1723,2901.9,2901.0,2.30883246]
[1644786622232,0.4723,2901.9,2901.1,3.39757906]
[1644786622786,0.1723,2901.9,2901.1,4.25950906]
[1644786622988,0.1723,2902.0,2901.1,4.25950906]
[1644786623784,0.01133742,2901.7,2901.1,24.63950906]
[1644786623981,0.01133742,2901.7,2901.5,1.12177392]
[1644786624384,0.01133742,2901.7,2901.5,22.66360392]
[1644786624584,0.01133742,2901.7,2901.6,25.38]
[1644786624787,0.25,2902.3,2901.6,26.38]
[1644786624984,0.1721,2902.9,2902.4,1.04132296]
[1644786625484,0.86178,2902.8,2902.4,0.3]
[1644786625682,1.33388,2902.8,2901.8,25.97063]
[1644786625887,1.33388,2902.8,2901.8,21.24173]
[1644786626083,0.0113356,2902.7,2901.8,21.54173]
[1644786626285,0.1721,2902.6,2901.9,3.59446693]
[1644786626529,0.1721,2902.6,2902.2,0.86822298]
[1644786626733,0.1721,2902.6,2902.2,1.16822298]
[1644786626929,0.1721,2902.6,2902.2,0.3]
[1644786627134,0.1721,2902.6,2901.9,3.59446693]
[1644786627331,0.01133595,2902.5,2901.9,3.59446693]
[1644786627730,0.1721,2902.4,2901.9,3.59446693]
[1644786627931,0.1721,2902.4,2902.1,0.90185353]
[1644786628129,0.01133595,2902.5,2902.1,0.90185353]
[1644786628331,0.1721,2902.8,2902.1,1.20185353]
[1644786628531,0.01072862,2902.4,2902.1,0.3]
[1644786628730,0.01072862,2902.4,2901.9,3.89446693]
[1644786629530,1.03388,2902.8,2901.9,3.89446693]
[1644786629730,0.01072877,2902.3,2901.9,4.80929525]
[1644786630781,0.3,2902.6,2901.9,4.80929525]
[1644786630979,0.01072885,2902.2,2901.9,4.80929525]
[1644786631180,0.01072885,2902.2,2901.9,3.89446693]
[1644786631385,0.01072885,2902.2,2901.6,1.1689]
[1644786631583,0.01072885,2902.2,2901.3,0.27639994]
[1644786631989,0.00237434,2902.3,2901.9,20.0]
[1644786632483,0.1721,2902.2,2901.9,20.0]
[1644786632681,0.1721,2902.2,2901.9,20.3]
[1644786633481,0.18286769,2902.2,2901.9,20.3]
[1644786633682,0.01076769,2902.2,2901.9,20.3]
[1644786634333,0.00237434,2902.3,2901.9,20.3]
[1644786634538,0.01076769,2902.2,2901.9,20.3]
[1644786635435,0.30237434,2902.3,2901.9,20.3]
[1644786635633,2.02629434,2902.3,2901.9,20.3]
[1644786635933,0.3,2902.1,2901.9,20.3]
[1644786636735,1.16201,2902.1,2901.9,20.3]
[1644786636935,1.17277567,2902.1,2901.9,20.3]
[1644786637138,1.175133,2902.1,2901.9,20.3]
[1644786637784,2.037113,2902.1,2901.9,20.3]
[1644786637984,2.02634733,2902.1,2901.9,20.3]
[1644786638185,2.037113,2902.1,2901.9,20.3]
[1644786638389,0.1721,2902.0,2901.9,20.3]
[1644786638884,1.6681,2902.0,2901.9,20.3]
[1644786639083,0.6681,2902.0,2901.9,20.0]
[1644786639284,1.6681,2902.0,2901.9,20.0]
[1644786639484,1.6681,2902.0,2901.9,11.9518]
[1644786640285,1.6681,2902.0,2901.9,0.00504449]
[1644786640486,1.6681,2902.0,2900.7,3.5]
[1644786640487,1.72473,2901.1,2900.1,4.00319069]
[1644786640784,0.86236,2901.1,2900.0,0.0040072]
[1644786640988,0.3,2901.0,2900.0,0.0040072]
[1644786641431,0.3,2901.2,2900.2,1.1805047]
[1644786641631,0.86238,2900.8,2900.2,0.3]
[1644786641834,0.01076738,2900.8,2900.0,0.0040072]
[1644786642632,0.6683,2901.3,2900.3,0.92305497]
[1644786642830,1.72478,2900.8,2900.3,0.92305497]
[1644786643034,0.87315716,2900.8,2900.3,0.3]
[1644786643233,0.31076716,2900.8,2900.1,0.3]
[1644786643633,0.01076716,2900.8,2900.1,0.3]
[1644786643834,0.86237,2900.8,2900.1,0.3]
[1644786644037,0.3,2900.9,2900.2,1.12852893]
[1644786644238,0.01076728,2900.8,2900.2,1.12852893]
[1644786644841,0.01076728,2900.8,2900.3,3.38286479]
[1644786645035,1.72449,2901.2,2900.3,3.38286479]
[1644786645291,0.1723,2901.4,2900.3,3.68286479]
[1644786645292,0.3,2901.1,2900.3,3.68286479]
[1644786645492,0.01076739,2900.8,2900.3,3.68286479]
[1644786645694,0.01076739,2900.8,2900.3,0.3]
[1644786645890,0.01076739,2900.8,2900.2,1.42852893]
[1644786646391,1.72477,2901.1,2900.2,1.42852893]
[1644786646592,0.01076739,2900.8,2900.2,0.3]
[1644786646793,0.3,2900.7,2900.3,1.03564992]
[1644786647194,0.3,2900.7,2900.3,1.33564992]
[1644786647397,0.01076739,2900.8,2900.3,1.33564992]
[1644786647592,0.86233,2901.2,2900.3,1.33564992]
[1644786647593,1.72455,2901.1,2900.8,0.91214192]
[1644786647792,0.3,2901.0,2900.8,1.21214192]
[1644786648592,0.3,2901.0,2900.8,0.3]
[1644786648792,0.3,2901.0,2900.3,3.4297619]
[1644786649035,0.31076754,2901.0,2900.3,3.7297619]
[1644786649434,1.17308754,2901.0,2900.3,0.3]
[1644786649635,1.17308754,2901.0,2900.4,0.84212893]
[1644786649834,2.02464,2901.0,2900.4,0.84212893]
[1644786650037,1.16232,2901.0,2900.4,1.14212893]
[1644786650234,0.01076774,2900.8,2900.4,1.14212893]
[1644786651036,1.16232,2901.0,2900.4,1.14212893]
[1644786651538,0.01076759,2900.8,2900.4,1.14212893]
[1644786652337,0.1723,2900.9,2900.4,1.14212893]
[1644786652541,0.01076759,2900.8,2900.4,1.14212893]
[1644786653591,0.1723,2900.9,2900.4,1.14212893]
[1644786653791,0.01076759,2900.8,2900.4,1.14212893]
[1644786654790,0.1723,2901.0,2900.4,1.14212893]
[1644786655093,0.01076762,2900.8,2900.4,1.14212893]
[1644786655890,0.3,2900.9,2900.4,1.14212893]
[1644786656289,0.01076762,2900.8,2900.4,1.14212893]
[1644786657235,0.86226,2901.2,2900.4,1.14212893]
[1644786657535,0.01076762,2900.8,2900.4,1.14212893]
[1644786658335,1.72462,2901.1,2900.4,1.14212893]
[1644786658537,0.01076762,2900.8,2900.4,1.14212893]
[1644786659535,0.1723,2901.0,2900.4,1.14212893]
[1644786659735,0.01076762,2900.8,2900.4,1.14212893]
[1644786660787,1.16236,2900.9,2900.4,1.14212893]
[1644786660988,0.01076762,2900.8,2900.4,1.14212893]
[1644786661987,1.16236,2900.9,2900.4,1.14212893]
[1644786662187,0.01076762,2900.8,2900.4,1.14212893]
[1644786663190,1.16236,2900.9,2900.4,1.14212893]
[1644786663389,0.01076762,2900.8,2900.4,1.14212893]
[1644786664254,0.3,2900.9,2900.4,1.14212893]
[1644786664452,0.01013798,2900.8,2900.4,1.14212893]
[1644786665054,0.01013798,2900.8,2900.5,3.35275741]
[1644786665252,0.01013798,2900.8,2900.4,1.14212893]
[1644786665453,0.3,2900.9,2900.4,1.14212893]
[1644786665856,0.87250808,2900.8,2900.4,1.14212893]
[1644786666153,0.87250808,2900.8,2900.4,1.14060763]
[1644786666754,0.86237,2900.8,2900.4,1.14060763]
[1644786666955,0.86242,2900.7,2900.4,1.14060763]
[1644786667155,0.86242,2900.7,2900.1,4.18010204]
[1644786667355,1.16242,2900.7,2900.1,0.3]
[1644786667797,1.16242,2900.7,2900.0,1.6525072]
[1644786668096,0.86245,2900.6,2900.1,1.46662324]
[1644786668297,0.86245,2900.6,2900.0,1.37397191]
[1644786668493,1.03475,2900.6,2900.0,1.37397191]
[1644786669092,0.86248,2900.5,2900.1,0.3]
[1644786669292,0.86248,2900.4,2900.1,0.3]
[1644786669492,1.16248,2900.4,2900.1,0.3]
[1644786670295,0.3,2900.4,2900.1,0.3]
[1644786670594,0.1723,2900.3,2900.1,0.3]
[1644786670799,0.4723,2900.3,2900.1,0.3]
[1644786671636,0.3,2900.3,2900.1,0.3]
[1644786673446,1.72498,2900.4,2900.1,0.3]
[1644786674239,2.58751,2900.4,2900.1,0.3]
[1644786675192,0.3,2900.3,2900.1,0.3]
[1644786680135,0.4724,2900.6,2900.1,0.3]
[1644786681042,1.33487,2900.6,2900.1,0.3]
[1644786682041,2.19732,2900.6,2900.1,0.3]
[1644786686639,2.02492,2900.6,2900.1,0.3]
[1644786687238,2.02492,2900.6,2900.1,0.29889887]
[1644786687841,0.3,2900.6,2900.5,0.94132112]
[1644786688242,0.014,2900.7,2900.5,0.94132112]
[1644786688442,0.014,2900.7,2900.5,0.89132112]
[1644786689245,0.014,2900.7,2900.5,1.19132112]
[1644786689643,0.014,2900.7,2900.5,0.3]
[1644786689847,0.014,2900.7,2900.1,3.2616]
[1644786690043,0.87642,2900.7,2900.1,3.5616]
[1644786690286,0.3,2900.6,2900.1,0.3]
[1644786690486,1.16245,2900.6,2900.1,0.3]
[1644786691489,2.0249,2900.6,2900.3,0.9910139]
[1644786691887,2.0249,2900.6,2900.3,1.2910139]
[1644786694841,2.0249,2900.6,2900.3,0.3]
[1644786695039,2.0249,2900.6,2900.1,0.3]
[1644786695447,0.86248,2900.5,2900.1,0.3]
[1644786695641,2.0249,2900.6,2900.1,0.3]
[1644786695840,2.0249,2900.6,2900.1,1.17772023]
[1644786696245,0.3,2900.6,2900.2,4.7497499]
[1644786696442,0.3,2900.6,2900.1,1.17772023]
[1644786696747,0.014,2900.7,2900.2,1.46667926]
[1644786697543,0.014,2900.7,2900.1,1.17772023]
[1644786697544,0.87642,2900.7,2900.1,1.17772023]
[1644786697797,0.87642,2900.7,2900.2,1.46668022]
[1644786697995,0.3,2900.6,2900.2,1.46668022]
[1644786698394,0.3,2900.6,2900.1,1.17772023]
[1644786698995,0.3,2900.6,2900.2,1.46669394]
[1644786700195,0.3,2900.6,2900.1,1.17772023]
[1644786701298,0.2986637,2900.6,2900.1,1.17772023]
[1644786702335,0.86246,2900.6,2900.1,1.17772023]
[1644786702741,0.1863,2900.7,2900.1,1.17772023]
[1644786703038,0.014,2900.7,2900.1,1.17772023]
[1644786703636,0.014,2900.7,2900.2,1.46671017]
[1644786704038,1.86109,2900.8,2900.1,1.17772023]
[1644786704240,0.3,2900.7,2900.2,1.46670802]
[1644786705291,0.86245,2900.6,2900.2,1.46670802]
[1644786705990,1.11245,2900.7,2900.2,1.46670802]
[1644786706389,0.86244,2900.6,2900.2,1.46670802]
[1644786706590,1.72492,2900.6,2900.1,0.3]
[1644786707993,2.5874,2900.6,2900.2,1.4667556]
[1644786708594,2.5874,2900.6,2900.1,0.3]
[1644786709744,2.5874,2900.6,2900.2,1.46677618]
[1644786713287,1.72492,2900.6,2900.2,1.46677618]
[1644786714185,0.86248,2900.6,2900.2,1.46677618]
[1644786715390,0.86243,2900.7,2900.2,1.46677618]
[1644786715590,1.04490531,2900.8,2900.4,0.91957983]
[1644786715790,0.87260531,2900.8,2900.4,0.91957983]
[1644786715990,0.86241,2900.8,2900.4,0.91957983]
[1644786716190,0.8726057,2900.8,2900.4,1.21957983]
[1644786716636,1.1726057,2900.8,2900.4,1.21957983]
[1644786716935,2.0349657,2900.8,2900.4,1.21957983]
[1644786717136,2.02477,2900.8,2900.4,1.21957983]
[1644786717337,2.0349657,2900.8,2900.4,1.21957983]
[1644786717742,0.1723,2900.7,2900.4,1.21957983]
[1644786718341,0.86247,2900.6,2900.1,0.25]
[1644786718542,1.16247,2900.6,2900.2,1.46672714]
[1644786719740,1.16247,2900.6,2900.2,2.36051154]
[1644786719941,2.88745,2900.6,2900.3,1.46672714]
[1644786720200,2.88745,2900.6,2900.3,1.76672714]
[1644786720387,2.88745,2900.6,2900.3,0.3]
[1644786720588,2.88745,2900.6,2900.2,1.1937844]
[1644786720788,2.88745,2900.6,2900.3,1.46673564]
[1644786722088,0.8625,2900.5,2900.3,1.46673564]
[1644786722693,2.02498,2900.6,2900.3,1.46673564]
[1644786723191,0.3,2900.6,2900.3,1.46673564]
[1644786723590,0.3,2900.7,2900.3,1.46673564]
[1644786723791,0.01019539,2900.8,2900.3,1.46673564]
[1644786724338,3.44971,2900.8,2900.3,1.46673564]
[1644786724538,0.3,2900.7,2900.3,1.46673564]
[1644786724944,1.90831474,2900.8,2900.3,1.46673564]
[1644786724945,2.20831474,2900.8,2900.3,1.46673564]
[1644786725540,2.19719,2900.8,2900.3,1.46673564]
[1644786725741,0.86241,2900.7,2900.3,1.46673564]
[1644786725944,1.34582474,2900.8,2900.3,1.46673564]
[1644786726140,1.17352474,2900.8,2900.3,1.46673564]
[1644786726740,1.1624,2900.8,2900.3,1.46673564]
[1644786726941,1.17352474,2900.8,2900.3,1.46673564]
[1644786727995,1.1624,2900.8,2900.3,1.46673564]
[1644786728189,1.17373355,2900.8,2900.3,1.46673564]
[1644786728391,2.03610355,2900.8,2900.3,1.46673564]
[1644786729190,2.02477,2900.8,2900.3,1.46673564]
[1644786729390,2.03610355,2900.8,2900.3,1.46673564]
[1644786730396,2.02477,2900.8,2900.3,1.46673564]
[1644786730599,2.03610355,2900.8,2900.3,1.46673564]
[1644786731195,1.17370355,2900.8,2900.3,1.46673564]
[1644786731641,1.16237,2900.8,2900.3,1.46673564]
[1644786731840,1.17370857,2900.8,2900.3,1.46673564]
[1644786732640,1.17370857,2900.8,2900.7,1.15872533]
[1644786732842,0.3,2900.8,2900.7,1.15872533]
[1644786733042,0.31133857,2900.8,2900.7,1.15872533]
[1644786733244,0.01133857,2900.8,2900.7,1.15872533]
[1644786733441,0.01133857,2900.8,2900.7,0.3]
[1644786733842,0.01133857,2900.8,2900.0,1.4496]
[1644786734042,0.86236,2900.9,2900.1,1.76656425]
[1644786734242,0.87369881,2900.9,2900.2,1.46656425]
[1644786734642,0.87369881,2900.9,2900.3,0.9199461]
[1644786734842,0.87369881,2900.9,2900.4,1.46656425]
[1644786735042,0.86237,2900.8,2900.4,1.46656425]
[1644786735289,1.16237,2900.8,2900.4,1.46656425]
[1644786735487,1.17370879,2900.8,2900.4,1.46656425]
[1644786735686,2.03609879,2900.8,2900.4,1.46656425]
[1644786736388,2.02476,2900.8,2900.4,1.46656425]
[1644786736588,2.03609868,2900.8,2900.4,1.46656425]
[1644786737590,2.02476,2900.8,2900.4,1.46656425]
[1644786737790,2.03609868,2900.8,2900.4,1.46656425]
[1644786738792,2.02476,2900.8,2900.4,1.46656425]
[1644786739037,2.03543716,2900.8,2900.4,1.46656425]
[1644786740040,2.02476,2900.8,2900.4,1.46656425]
[1644786740240,2.03543716,2900.8,2900.4,1.46656425]
[1644786740440,0.01067716,2900.8,2900.4,1.46656425]
[1644786740649,0.01067716,2900.8,2900.6,20.38]
[1644786740841,0.01067716,2900.8,2900.7,22.84656425]
[1644786741045,0.01067716,2900.8,2900.7,23.64256425]
[1644786741241,3.6723,2901.8,2900.7,23.64256425]
[1644786741242,3.5,2901.8,2900.8,0.03203148]
[1644786741442,0.1723,2902.4,2900.9,21.84656425]
[1644786741747,3.6723,2902.5,2901.4,20.38]
[1644786741944,3.6723,2902.5,2901.1,20.68]
[1644786741945,7.1723,2902.5,2901.1,20.68]
[1644786742241,7.1723,2902.5,2901.2,1.46606518]
[1644786742440,3.6723,2902.5,2901.2,1.46606518]
[1644786742702,1.03422,2902.5,2901.2,1.46606518]
[1644786742892,0.1723,2902.5,2902.2,1.05122083]
[1644786743096,0.3,2902.4,2902.2,1.05122083]
[1644786743294,0.1721,2902.3,2902.2,1.35122083]
[1644786743494,0.1721,2902.6,2902.2,1.35122083]
[1644786743701,0.1721,2902.6,2902.2,0.3]
[1644786743897,0.1721,2902.6,2901.3,25.6071]
[1644786743898,0.01097453,2902.4,2901.3,25.6071]
[1644786744095,0.01097453,2902.4,2901.5,0.86183]
[1644786744296,0.1723,2902.3,2901.5,1.16183]
[1644786744995,0.01097522,2902.0,2901.5,1.16183]
[1644786745196,0.01097522,2902.0,2901.6,1.18587254]
[1644786745996,0.1723,2902.5,2901.6,1.18587254]
[1644786746300,0.1723,2902.5,2901.5,2.16183]
[1644786747351,0.17469134,2902.5,2901.5,2.16183]
[1644786747552,0.01070533,2902.1,2901.5,2.16183]
[1644786747752,0.01070533,2902.1,2902.0,0.94434035]
[1644786747952,0.01070533,2902.1,2901.5,2.16183]
[1644786748352,0.17469134,2902.5,2901.5,2.16183]
[1644786748652,0.01070568,2901.9,2901.5,2.16183]
[1644786749051,0.01070568,2901.9,2901.5,1.16183]
[1644786749253,0.01070568,2901.9,2901.5,0.3]
[1644786749454,0.1723,2901.8,2901.3,1.5208]
[1644786749858,0.01070585,2901.8,2901.3,1.5208]
[1644786750054,0.1723,2901.7,2901.2,0.1723]
[1644786750311,3.08297,2901.6,2901.2,0.1723]
[1644786750511,0.1723,2901.5,2901.2,0.1723]
[1644786750707,1.1723,2901.5,2901.2,0.1723]
[1644786751108,1.18302423,2901.5,2901.2,0.1723]
[1644786751313,1.18302423,2901.5,2900.8,0.03203148]
[1644786751314,3.78435887,2901.4,2900.8,0.03203148]
[1644786751516,0.1723,2901.3,2900.8,0.03203148]
[1644786751712,0.496,2901.2,2900.8,0.03203148]
[1644786751910,3.51454029,2901.1,2900.8,0.03203148]
[1644786752108,3.81454029,2901.1,2900.8,0.03203148]
[1644786752310,0.86247,2900.9,2900.8,0.03203148]
[1644786752510,4.46341566,2900.9,2900.8,0.03203148]
[1644786752710,4.58224191,2900.9,2900.8,0.03203148]
[1644786752909,2.33477,2900.9,2900.8,0.03203148]
[1644786753517,6.33077,2900.9,2900.8,3.148e-05]
[1644786753942,2.83077,2900.9,2900.8,3.148e-05]
[1644786754744,6.33077,2900.9,2900.8,3.148e-05]
[1644786754945,11.33077,2900.9,2900.8,3.148e-05]
[1644786755245,4.65,2900.8,2900.5,8.982e-05]
[1644786755447,5.86287,2900.6,2900.5,8.982e-05]
[1644786755646,5.86287,2900.6,2899.3,0.0040072]
[1644786755647,10.76446811,2900.6,2899.3,0.0040072]
[1644786755845,1.72569,2900.3,2899.4,1.46694181]
[1644786756044,4.66796978,2900.2,2899.5,0.0040072]
[1644786756244,4.66796978,2900.2,2899.2,0.0040072]
[1644786756445,0.86279,2899.9,2899.3,1.46695401]
[1644786756650,1.65879,2899.9,2899.4,0.0040072]
[1644786756848,1.65879,2899.9,2899.6,0.4496]
[1644786757046,1.65879,2899.9,2899.6,0.4536072]
[1644786757245,1.65879,2899.9,2899.7,0.3]
[1644786757447,2.52156,2899.9,2899.7,0.3]
[1644786757891,3.38434,2899.9,2899.7,0.3]
[1644786758292,1.0,2899.8,2899.7,0.01134676]
[1644786759295,3.38434,2899.9,2899.6,0.4536072]
[1644786759493,6.88434,2899.9,2899.7,0.3]
[1644786760292,6.88038862,2899.9,2899.7,0.3]
[1644786760693,1.0,2899.8,2899.7,0.31107289]
[1644786760892,6.88038862,2899.9,2899.7,0.31107289]
[1644786761092,1.0,2899.8,2899.7,0.31107289]
[1644786761541,1.0,2899.8,2899.7,0.25]
[1644786761951,1.0,2899.8,2899.6,0.46468018]
[1644786762144,0.496,2899.7,2899.6,0.46067298]
[1644786762345,1.53139,2899.7,2899.6,0.01107298]
[1644786762846,0.86296,2899.5,2898.9,0.0040072]
[1644786763045,1.53136,2899.5,2898.9,0.0040072]
[1644786763244,6.03136,2899.5,2898.9,0.0040072]
[1644786763445,0.86301,2899.4,2898.9,0.0040072]
[1644786763646,0.496,2899.3,2898.9,0.0040072]
[1644786764450,0.86297,2899.2,2898.9,0.0040072]
[1644786764645,1.65897,2899.2,2898.8,1.1624]
[1644786764846,2.65897,2899.2,2898.8,1.1624]
[1644786765301,0.17720114,2898.7,2898.1,0.0040072]
[1644786765507,5.0,2898.3,2897.9,0.0040072]
[1644786765706,0.496,2898.2,2897.9,0.0040072]
[1644786765901,0.496,2898.2,2897.7,0.1724]
[1644786765902,1.6684,2898.2,2897.7,0.1724]
[1644786766300,5.1684,2898.2,2897.7,0.1724]
[1644786766501,2.59036,2898.0,2897.7,0.1724]
[1644786766701,0.6684,2897.9,2897.8,0.01134962]
[1644786766900,1.6684,2897.9,2897.8,0.01134962]
[1644786767104,0.6684,2897.9,2897.8,0.01134962]
[1644786767302,1.6684,2897.9,2897.8,0.01134962]
[1644786767600,4.92628846,2897.9,2897.8,0.01134962]
[1644786767803,4.92628846,2897.9,2897.7,0.1724]
[1644786768003,3.46280362,2897.8,2897.7,0.18374979]
[1644786768199,3.78640362,2897.8,2897.7,0.18374979]
[1644786768401,5.08640362,2897.8,2897.7,0.18374979]
[1644786768800,5.08640362,2897.8,2897.7,0.1724]
[1644786769044,8.58640362,2897.8,2897.7,0.1724]
[1644786770345,8.58640362,2897.8,2897.6,0.01134997]
[1644786770346,6.37702,2897.7,2897.6,0.01134997]
[1644786770546,12.23655,2897.7,2897.6,0.01134997]
[1644786770751,8.73655,2897.7,2897.6,0.01134997]
[1644786770947,4.08655,2897.7,2897.6,0.01134997]
[1644786771146,4.08655,2897.7,2896.4,3.0646]
[1644786771347,4.08655,2897.7,2896.6,1.03439814]
[1644786771348,0.86354,2897.4,2896.6,1.03439814]
[1644786771577,1.35952,2897.3,2896.7,1.10600018]
[1644786771949,0.3,2897.2,2896.7,1.10600018]
[1644786772552,3.8,2897.2,2896.7,1.10600018]
[1644786772796,4.66359,2897.2,2896.7,1.10600018]
[1644786772994,5.52713,2897.2,2896.7,1.10600018]
[1644786773492,8.83530972,2897.2,2896.7,1.10600018]
[1644786773692,5.52713,2897.2,2896.7,1.10600018]
[1644786773894,6.39069,2897.2,2896.7,1.10600018]
[1644786774294,9.77589236,2897.2,2896.7,1.10600018]
[1644786774592,0.496,2897.1,2896.7,1.10600018]
[1644786774798,0.86365,2896.9,2896.7,1.10600018]
[1644786774995,0.86365,2896.9,2896.7,1.1020567]
[1644786775195,0.86365,2896.9,2896.8,0.01132471]
[1644786775196,1.16365,2896.9,2896.8,0.01132471]
[1644786775394,4.4753079,2896.9,2896.8,0.01132471]
[1644786775994,7.9753079,2896.9,2896.7,1.1020567]
[1644786776195,3.29035562,2896.8,2896.7,1.11338158]
[1644786776444,3.29035562,2896.8,2896.7,0.81732506]
[1644786776445,4.29990872,2896.8,2896.7,0.81732506]
[1644786776647,4.79590872,2896.8,2896.7,0.81732506]
[1644786776845,3.79590872,2896.8,2896.7,0.81732506]
[1644786777146,0.5,2896.8,2896.7,0.80600018]
[1644786777746,3.75920542,2896.8,2896.7,0.80600018]
[1644786777951,1.5,2896.8,2896.7,0.80600018]
[1644786778748,1.6726,2896.8,2896.7,0.80600018]
[1644786778946,4.98843469,2896.8,2896.7,0.80600018]
[1644786779347,4.98843469,2896.8,2896.7,1.10600018]
[1644786779546,1.6726,2896.8,2896.7,1.10600018]
[1644786779749,4.77761813,2896.8,2896.7,1.10600018]
[1644786782195,1.5,2896.8,2896.7,1.10600018]
[1644786782396,4.75443089,2896.8,2896.7,1.10600018]
[1644786782998,1.5,2896.8,2896.7,1.10600018]
[1644786786547,0.5,2896.8,2896.7,1.10600018]
[1644786786746,0.004,2896.8,2896.7,1.10600018]
[1644786787809,1.72701,2897.4,2896.7,1.10600018]
[1644786787810,0.1726,2897.5,2896.8,0.008]
[1644786787995,1.89944,2897.6,2897.2,1.1088548]
[1644786788192,1.89944,2897.6,2896.8,0.01199746]
[1644786788193,0.1724,2897.7,2896.8,0.01199746]
[1644786788393,0.1724,2898.0,2896.8,0.01199746]
[1644786788593,0.51165961,2897.8,2896.8,3.42040372]
[1644786788799,0.86333,2897.7,2896.8,0.01199746]
[1644786789492,0.86333,2897.7,2897.1,0.01132419]
[1644786789994,0.86346,2897.4,2897.1,0.01132419]
[1644786790397,1.16346,2897.4,2896.8,0.01199746]
[1644786790595,0.3,2897.4,2896.8,0.01199746]
[1644786790794,2.02692,2897.6,2897.1,0.01132419]
[1644786791197,1.72688,2897.5,2897.1,0.01132419]
[1644786791643,1.72688,2897.5,2896.8,0.01199746]
[1644786791844,0.86344,2897.5,2896.8,0.01199746]
[1644786792045,0.86344,2897.5,2897.2,0.01132411]
[1644786792949,0.86344,2897.5,2896.8,0.01199746]
[1644786793144,0.86344,2897.5,2897.2,0.01132402]
[1644786793546,0.86342,2897.4,2897.2,0.01132402]
[1644786793745,1.16342,2897.4,2897.2,0.01132402]
[1644786794147,1.16342,2897.4,2896.8,0.01199746]
[1644786794346,1.16342,2897.4,2897.2,0.01132411]
[1644786795228,2.02686,2897.4,2896.8,0.01199746]
[1644786795421,2.02686,2897.4,2897.2,0.01132411]
[1644786796423,2.02686,2897.4,2896.8,0.01199746]
[1644786796625,0.86344,2897.3,2897.2,0.01066266]
[1644786797825,0.86344,2897.3,2896.8,0.01199746]
[1644786798026,0.86344,2897.3,2897.1,0.01066274]
[1644786798428,1.7269,2897.3,2897.1,0.01066274]
[1644786798826,1.7269,2897.3,2896.8,0.01199746]
[1644786799045,1.7269,2897.3,2897.1,0.01066283]
[1644786800145,2.59037,2897.3,2896.8,0.01199746]
[1644786800346,1.72702,2897.2,2897.1,0.01066283]
[1644786800547,1.16349,2897.2,2897.1,0.01066283]
[1644786800949,1.65949,2897.2,2897.1,0.01066283]
[1644786801346,0.86368,2897.0,2896.8,0.01199746]
[1644786801546,0.496,2896.9,2896.8,0.008]
[1644786802246,1.496,2896.9,2896.8,0.008]
[1644786802447,0.796,2896.9,2896.8,0.008]
[1644786802695,1.496,2896.9,2896.8,0.008]
[1644786802896,0.796,2896.9,2896.8,0.008]
[1644786803099,1.35965,2896.9,2896.8,0.008]
[1644786804897,0.496,2896.9,2896.8,0.008]
[1644786807246,0.6686,2896.9,2896.8,0.008]
[1644786809350,3.0635,2897.0,2896.8,0.008]
[1644786809652,2.8909,2897.0,2896.8,0.008]
[1644786809847,2.8909,2897.0,2896.8,0.01933002]
[1644786810798,2.8909,2897.0,2896.8,0.008]
[1644786811200,2.8909,2897.0,2896.8,0.01933002]
[1644786811598,2.8909,2897.0,2896.8,0.01788795]
[1644786811998,2.8909,2897.0,2896.8,0.00655793]
[1644786812400,2.8909,2897.0,2896.8,0.01788795]
[1644786813300,2.8909,2897.0,2896.8,0.00655793]
[1644786813501,2.8909,2897.0,2896.8,0.01788795]
[1644786814552,2.8909,2897.0,2896.8,0.00655793]
[1644786814753,2.8909,2897.0,2896.8,0.01788795]
[1644786814954,2.89079,2897.0,2896.8,0.01788795]
[1644786815356,1.16368,2897.0,2896.8,0.01788795]
[1644786815553,0.3,2897.0,2896.8,0.01788795]
[1644786815754,0.3,2897.0,2896.8,0.00655793]
[1644786815954,2.16348,2897.2,2896.8,0.01788795]
[1644786816154,2.16348,2897.2,2896.8,0.02188541]
[1644786816557,3.02697,2897.2,2896.8,0.02188541]
[1644786816854,2.02697,2897.2,2896.8,0.01055539]
[1644786817055,1.72697,2897.2,2896.9,0.01132985]
[1644786817257,0.496,2897.7,2896.9,0.01132985]
[1644786817455,1.54739961,2897.8,2896.9,0.01132985]
[1644786817702,0.86334,2897.7,2896.9,0.01132985]
[1644786818106,0.86334,2897.7,2896.8,0.01055539]
[1644786818402,0.86346,2897.5,2897.2,0.01132933]
[1644786818803,0.86349,2897.4,2897.2,0.01132933]
[1644786819201,0.496,2897.3,2896.8,0.01055539]
[1644786819403,0.6684,2897.3,2896.8,0.01055539]
[1644786819703,1.53203,2897.3,2897.2,0.01132933]
[1644786819902,2.53203,2897.3,2897.2,0.01132933]
[1644786820502,2.53203,2897.3,2896.8,0.01055539]
[1644786820703,3.39568,2897.3,2897.1,0.01132942]
[1644786821750,0.86364,2897.1,2896.8,0.01055539]
[1644786821951,0.86363,2897.0,2896.8,0.00655793]
[1644786822851,2.59088,2897.0,2896.8,0.00655793]
[1644786823052,2.59088,2897.0,2896.8,0.01788795]
[1644786823255,3.346,2896.9,2896.3,0.04532689]
[1644786823455,0.86392,2896.8,2896.3,0.04532689]
[1644786823652,0.496,2896.7,2896.3,0.04532689]
[1644786823854,1.72778,2896.6,2896.3,0.04532689]
[1644786824156,0.496,2896.5,2896.2,0.00399736]
[1644786824352,0.496,2896.5,2895.8,0.00399736]
[1644786824553,1.35988,2896.5,2895.9,1.46864934]
[1644786824753,1.35988,2896.5,2896.0,0.00399736]
[1644786824952,3.08765,2896.5,2896.0,0.00399736]
[1644786825209,4.08765,2896.5,2895.8,0.00399736]
[1644786825801,5.81539,2896.5,2895.8,0.00399736]
[1644786826000,0.86384,2896.4,2895.8,0.00399736]